[Event "*** Titled Tuesday 3|2 Blitz (Early)"]
[Site "Chess.com"]
[Date "2017.01.03"]
[Round "1"]
[White "HK1974"]
[Black "Lupul_Cenusiu"]
[Result "0-1"]
[WhiteElo "2169"]
[BlackElo "2468"]
[TimeControl "180+2"]
[EndTime "11:09:14 PST"]
[Termination "Lupul_Cenusiu won by resignation"]

1. e4 {[%clk 0:03:00]} 1... c5 {[%clk 0:03:00.2]} 2. Nf3 {[%clk 0:03:00.3]} 2...
e6 {[%clk 0:03:01.3]} 3. Nc3 {[%clk 0:03:00.3]} 3... a6 {[%clk 0:03:02.1]} 4. g3
{[%clk 0:03:01.1]} 4... Nc6 {[%clk 0:03:01.9]} 5. Bg2 {[%clk 0:03:03]} 5... d6
{[%clk 0:03:03.2]} 6. O-O {[%clk 0:03:03]} 6... Nf6 {[%clk 0:03:04.4]} 7. d3
{[%clk 0:03:04]} 7... Be7 {[%clk 0:03:04.9]} 8. h3 {[%clk 0:03:04.4]} 8... Qc7
{[%clk 0:03:04]} 9. Nh2 {[%clk 0:03:00.2]} 9... b5 {[%clk 0:03:04.1]} 10. f4
{[%clk 0:02:58.7]} 10... Bb7 {[%clk 0:03:05.3]} 11. Be3 {[%clk 0:02:57]} 11...
Nd4 {[%clk 0:03:03.2]} 12. Ne2 {[%clk 0:02:53]} 12... Nxe2+ {[%clk 0:03:02.9]}
13. Qxe2 {[%clk 0:02:53.7]} 13... d5 {[%clk 0:03:00.4]} 14. e5 {[%clk 0:02:46]}
14... Nd7 {[%clk 0:03:01.3]} 15. d4 {[%clk 0:02:47.2]} 15... cxd4 {[%clk
0:03:00]} 16. Bxd4 {[%clk 0:02:47.8]} 16... Nc5 {[%clk 0:02:58.6]} 17. g4 {[%clk
0:02:35.4]} 17... Ne4 {[%clk 0:02:54.9]} 18. Rfd1 {[%clk 0:02:20.7]} 18... Rc8
{[%clk 0:02:38.6]} 19. c3 {[%clk 0:02:19]} 19... Bc5 {[%clk 0:02:38.6]} 20. Nf3
{[%clk 0:02:17]} 20... h5 {[%clk 0:02:36.1]} 21. a4 {[%clk 0:02:10.1]} 21...
hxg4 {[%clk 0:02:31.8]} 22. hxg4 {[%clk 0:02:09.3]} 22... b4 {[%clk 0:02:06]}
23. cxb4 {[%clk 0:02:05.6]} 23... Bxb4 {[%clk 0:02:06]} 24. Qe3 {[%clk
0:02:05.4]} 24... Qd7 {[%clk 0:01:59.3]} 25. Rdc1 {[%clk 0:01:56.6]} 25... Rxc1+
{[%clk 0:01:58.6]} 26. Qxc1 {[%clk 0:01:53.9]} 26... O-O {[%clk 0:01:52.3]} 27.
Qe3 {[%clk 0:01:51]} 27... Rc8 {[%clk 0:01:51.8]} 28. b3 {[%clk 0:01:35.4]}
28... Rc2 {[%clk 0:01:50.1]} 29. Rc1 {[%clk 0:01:33.9]} 29... Qc6 {[%clk
0:01:48.1]} 30. Rxc2 {[%clk 0:01:33.1]} 30... Qxc2 {[%clk 0:01:48.9]} 31. Ng5
{[%clk 0:01:33.5]} 31... Qd1+ {[%clk 0:01:41.9]} 32. Kh2 {[%clk 0:01:28.3]}
32... Nxg5 {[%clk 0:01:34.8]} 33. fxg5 {[%clk 0:01:28.9]} 33... Qxg4 {[%clk
0:01:29.5]} 34. Bh3 {[%clk 0:01:23.4]} 34... Qh5 {[%clk 0:01:30.1]} 35. Kg3
{[%clk 0:01:15]} 35... Be7 {[%clk 0:01:29.1]} 36. Qc3 {[%clk 0:01:02.8]} 36...
Bxg5 {[%clk 0:01:22.6]} 37. Qc7 {[%clk 0:00:57.4]} 37... Qh4+ {[%clk 0:01:21.7]}
38. Kg2 {[%clk 0:00:43.4]} 38... Qe4+ {[%clk 0:01:21.7]} 39. Kf1 {[%clk
0:00:31.6]} 39... Qxd4 {[%clk 0:01:18.5]} 40. Qxb7 {[%clk 0:00:29.9]} 40... Qd3+
{[%clk 0:01:17.6]} 41. Kg2 {[%clk 0:00:28]} 41... Qe2+ {[%clk 0:01:16.2]} 42.
Kh1 {[%clk 0:00:26.9]} 42... Qf3+ {[%clk 0:01:13.2]} 43. Bg2 {[%clk 0:00:25.7]}
43... Qh5+ {[%clk 0:01:12.1]} 0-1

[Event "*** Titled Tuesday 3|2 Blitz (Early)"]
[Site "Chess.com"]
[Date "2017.01.03"]
[Round "1"]
[White "IIIlllII1llIl"]
[Black "Fibrinogen"]
[Result "1-0"]
[WhiteElo "2517"]
[BlackElo "2274"]
[TimeControl "180+2"]
[EndTime "11:10:07 PST"]
[Termination "IIIlllII1llIl won by resignation"]

1. e4 {[%clk 0:03:01.9]} 1... e5 {[%clk 0:03:00.1]} 2. Nf3 {[%clk 0:03:02.6]}
2... Nc6 {[%clk 0:03:01.2]} 3. Bb5 {[%clk 0:03:03.1]} 3... a6 {[%clk 0:03:02]}
4. Ba4 {[%clk 0:03:03.9]} 4... Nf6 {[%clk 0:03:02.6]} 5. O-O {[%clk 0:03:04.2]}
5... Be7 {[%clk 0:03:03.3]} 6. Re1 {[%clk 0:03:04.9]} 6... b5 {[%clk 0:03:04.1]}
7. Bb3 {[%clk 0:03:05.5]} 7... d6 {[%clk 0:02:54.7]} 8. c3 {[%clk 0:03:05.8]}
8... O-O {[%clk 0:02:52.5]} 9. h3 {[%clk 0:03:05.8]} 9... Bb7 {[%clk 0:02:49.3]}
10. d4 {[%clk 0:03:06.8]} 10... Nd7 {[%clk 0:02:50.2]} 11. Nbd2 {[%clk
0:02:59.2]} 11... exd4 {[%clk 0:02:51]} 12. cxd4 {[%clk 0:02:57]} 12... Bf6
{[%clk 0:02:52.5]} 13. Nf1 {[%clk 0:02:18.7]} 13... Na5 {[%clk 0:02:50]} 14. Bc2
{[%clk 0:02:18.7]} 14... Re8 {[%clk 0:02:51.1]} 15. Ng3 {[%clk 0:02:15.7]} 15...
g6 {[%clk 0:02:50.8]} 16. b3 {[%clk 0:01:49.3]} 16... c5 {[%clk 0:02:41.4]} 17.
Bb2 {[%clk 0:01:50]} 17... Nc6 {[%clk 0:02:25]} 18. Rc1 {[%clk 0:01:43]} 18...
Rc8 {[%clk 0:01:44.2]} 19. Qd2 {[%clk 0:01:35.7]} 19... Nxd4 {[%clk 0:01:39.9]}
20. Nxd4 {[%clk 0:01:30.6]} 20... Bxd4 {[%clk 0:01:41.4]} 21. Bxd4 {[%clk
0:01:32.2]} 21... cxd4 {[%clk 0:01:42.9]} 22. Qxd4 {[%clk 0:01:34.1]} 22... Qf6
{[%clk 0:01:44.5]} 23. Qd2 {[%clk 0:01:14.8]} 23... Qc3 {[%clk 0:01:14.2]} 24.
Qxc3 {[%clk 0:00:45.9]} 24... Rxc3 {[%clk 0:01:16.1]} 25. Bb1 {[%clk 0:00:47.3]}
25... Rxc1 {[%clk 0:01:14.3]} 26. Rxc1 {[%clk 0:00:49.2]} 26... Nf6 {[%clk
0:01:06.2]} 27. Re1 {[%clk 0:00:26]} 27... d5 {[%clk 0:00:37.7]} 28. e5 {[%clk
0:00:27.2]} 28... Nd7 {[%clk 0:00:39]} 29. f4 {[%clk 0:00:25.2]} 29... f6 {[%clk
0:00:38.1]} 30. e6 {[%clk 0:00:20.9]} 30... Nc5 {[%clk 0:00:32]} 31. f5 {[%clk
0:00:20.8]} 31... gxf5 {[%clk 0:00:30.8]} 32. e7 {[%clk 0:00:20.7]} 32... Bc8
{[%clk 0:00:25.7]} 33. Bxf5 {[%clk 0:00:16.9]} 33... Bxf5 {[%clk 0:00:11.2]} 34.
Nxf5 {[%clk 0:00:18.8]} 34... Ne4 {[%clk 0:00:12]} 35. Rc1 {[%clk 0:00:15]}
35... Kf7 {[%clk 0:00:13.3]} 36. Rc6 {[%clk 0:00:15.8]} 36... Kg6 {[%clk
0:00:14]} 37. g4 {[%clk 0:00:16.8]} 37... h5 {[%clk 0:00:15.3]} 38. Kg2 {[%clk
0:00:15.9]} 38... hxg4 {[%clk 0:00:16.6]} 39. hxg4 {[%clk 0:00:17.8]} 39... Kg5
{[%clk 0:00:18]} 40. Rc7 {[%clk 0:00:10]} 40... Rg8 {[%clk 0:00:13.4]} 41. Ng7
{[%clk 0:00:09]} 41... Nd6 {[%clk 0:00:14.5]} 42. Ne6+ {[%clk 0:00:04.7]} 42...
Kxg4 {[%clk 0:00:13.4]} 43. Nf8 {[%clk 0:00:05.8]} 43... Kf5+ {[%clk 0:00:13.4]}
44. Kf1 {[%clk 0:00:06.1]} 44... Ke5 {[%clk 0:00:11.4]} 45. Rd7 {[%clk
0:00:06.7]} 45... Ne8 {[%clk 0:00:10.2]} 46. Rd8 {[%clk 0:00:07.8]} 46... Nc7
{[%clk 0:00:11.5]} 47. Nd7+ {[%clk 0:00:08.2]} 47... Ke6 {[%clk 0:00:12.2]} 48.
Nc5+ {[%clk 0:00:09.3]} 48... Kf7 {[%clk 0:00:11.7]} 49. Rd7 {[%clk 0:00:05.9]}
49... Ne6 {[%clk 0:00:07.9]} 50. Nxe6 {[%clk 0:00:04.6]} 50... Re8 {[%clk
0:00:06.4]} 51. Nc7 {[%clk 0:00:04.7]} 51... Rxe7 {[%clk 0:00:07.3]} 52. Rxe7+
{[%clk 0:00:06.1]} 52... Kxe7 {[%clk 0:00:09.2]} 53. Nxa6 {[%clk 0:00:07.5]}
53... Kd6 {[%clk 0:00:11.1]} 54. Nb4 {[%clk 0:00:08.5]} 54... Kc5 {[%clk
0:00:12.5]} 55. Nc2 {[%clk 0:00:10]} 55... d4 {[%clk 0:00:13.2]} 56. Ke2 {[%clk
0:00:11.9]} 56... f5 {[%clk 0:00:14.7]} 57. Kd3 {[%clk 0:00:13.4]} 57... f4
{[%clk 0:00:16.5]} 58. Nxd4 {[%clk 0:00:14.9]} 58... Kb4 {[%clk 0:00:17.7]} 59.
Nc2+ {[%clk 0:00:16.2]} 59... Ka5 {[%clk 0:00:18.7]} 60. Ke4 {[%clk 0:00:17.3]}
1-0

[Event "*** Titled Tuesday 3|2 Blitz (Early)"]
[Site "Chess.com"]
[Date "2017.01.03"]
[Round "1"]
[White "Alexander_Moskalenko"]
[Black "lionheart95"]
[Result "1-0"]
[WhiteElo "2672"]
[BlackElo "2373"]
[TimeControl "180+2"]
[EndTime "11:10:17 PST"]
[Termination "Alexander_Moskalenko won by resignation"]

1. e4 {[%clk 0:02:51.8]} 1... e5 {[%clk 0:02:57]} 2. Nf3 {[%clk 0:02:52.4]} 2...
Nc6 {[%clk 0:02:53.3]} 3. Nc3 {[%clk 0:02:49.8]} 3... Nf6 {[%clk 0:02:51.9]} 4.
d4 {[%clk 0:02:50.6]} 4... exd4 {[%clk 0:02:51]} 5. Nxd4 {[%clk 0:02:52.5]} 5...
Bb4 {[%clk 0:02:50.8]} 6. Nxc6 {[%clk 0:02:53.9]} 6... bxc6 {[%clk 0:02:50.9]}
7. Bd3 {[%clk 0:02:55.1]} 7... O-O {[%clk 0:02:51.5]} 8. O-O {[%clk 0:02:47.3]}
8... d6 {[%clk 0:02:51.3]} 9. Bg5 {[%clk 0:02:46.3]} 9... Rb8 {[%clk 0:02:46.8]}
10. f4 {[%clk 0:02:31.8]} 10... Re8 {[%clk 0:02:36.4]} 11. a3 {[%clk 0:02:25.2]}
11... Bc5+ {[%clk 0:02:34.9]} 12. Kh1 {[%clk 0:02:26.4]} 12... h6 {[%clk
0:02:22.2]} 13. Bh4 {[%clk 0:02:27.2]} 13... Bd4 {[%clk 0:02:11.1]} 14. Qd2
{[%clk 0:02:27.3]} 14... c5 {[%clk 0:02:09.4]} 15. Rae1 {[%clk 0:02:19.9]} 15...
Rxb2 {[%clk 0:02:05.6]} 16. e5 {[%clk 0:02:14.4]} 16... Ne4 {[%clk 0:02:05.7]}
17. Nxe4 {[%clk 0:02:10.2]} 17... Qxh4 {[%clk 0:02:03.2]} 18. exd6 {[%clk
0:02:12.1]} 18... Rf8 {[%clk 0:01:45.7]} 19. dxc7 {[%clk 0:02:13.3]} 19... Bb7
{[%clk 0:01:33.9]} 20. Nd6 {[%clk 0:02:06.8]} 20... Qf6 {[%clk 0:01:29.9]} 21.
Nxb7 {[%clk 0:02:01.3]} 21... Rxb7 {[%clk 0:01:30]} 22. Qa5 {[%clk 0:02:03]}
22... Qd6 {[%clk 0:01:21.5]} 23. c8=Q {[%clk 0:02:01.9]} 23... Rxc8 {[%clk
0:01:21.1]} 24. Ba6 {[%clk 0:02:03.5]} 24... Bc3 {[%clk 0:01:17.6]} 25. Qa4
{[%clk 0:01:46.7]} 25... Bxe1 {[%clk 0:01:17]} 26. Bxb7 {[%clk 0:01:48.2]} 26...
Rb8 {[%clk 0:01:13.1]} 27. Qxa7 {[%clk 0:01:49.1]} 27... Bc3 {[%clk 0:01:05.3]}
28. Ba6 {[%clk 0:01:42.3]} 28... Qb6 {[%clk 0:00:59.9]} 29. Qxb6 {[%clk
0:01:42.9]} 29... Rxb6 {[%clk 0:01:01.7]} 30. Bc4 {[%clk 0:01:44.8]} 30... Rb2
{[%clk 0:01:01.1]} 31. Rd1 {[%clk 0:01:37.5]} 31... Bd4 {[%clk 0:00:56.7]} 32.
Bb3 {[%clk 0:01:33.8]} 32... c4 {[%clk 0:00:55.7]} 33. Bxc4 {[%clk 0:01:35.1]}
33... Rxc2 {[%clk 0:00:56.3]} 34. Bb5 {[%clk 0:01:34]} 34... Rb2 {[%clk
0:00:51.4]} 35. Bc4 {[%clk 0:01:32.1]} 35... g6 {[%clk 0:00:48.1]} 36. g3 {[%clk
0:01:32.7]} 36... Bc5 {[%clk 0:00:47.4]} 37. Rd7 {[%clk 0:01:33.6]} 37... Rb1+
{[%clk 0:00:39.2]} 38. Kg2 {[%clk 0:01:34.5]} 38... Rb2+ {[%clk 0:00:40.2]} 39.
Kh3 {[%clk 0:01:36]} 39... g5 {[%clk 0:00:40.9]} 40. fxg5 {[%clk 0:01:28.4]}
40... hxg5 {[%clk 0:00:41]} 41. Rxf7 {[%clk 0:01:29.9]} 41... Rc2 {[%clk
0:00:41.3]} 42. Bd5 {[%clk 0:01:18.5]} 42... Kh8 {[%clk 0:00:32.3]} 43. Rc7
{[%clk 0:01:14.8]} 43... Rc3 {[%clk 0:00:31]} 44. a4 {[%clk 0:01:15.8]} 44...
Bb4 {[%clk 0:00:30.5]} 45. Rxc3 {[%clk 0:01:16.3]} 45... Bxc3 {[%clk 0:00:31.3]}
46. Kg4 {[%clk 0:01:18.2]} 46... Bd2 {[%clk 0:00:32.3]} 47. Kf5 {[%clk
0:01:17.2]} 47... Kg7 {[%clk 0:00:33.2]} 48. Ke6 {[%clk 0:01:17.3]} 48... Bc3
{[%clk 0:00:31.1]} 49. Be4 {[%clk 0:01:17.3]} 49... Be1 {[%clk 0:00:28.6]} 50.
Bd3 {[%clk 0:01:07]} 50... Bd2 {[%clk 0:00:26.7]} 51. Bc2 {[%clk 0:01:02.1]}
51... Be1 {[%clk 0:00:27.1]} 52. Kd5 {[%clk 0:00:56.6]} 52... Kf6 {[%clk
0:00:26.9]} 53. Kc6 {[%clk 0:00:58.1]} 53... Ke5 {[%clk 0:00:27.7]} 54. Kb5
{[%clk 0:00:58.6]} 54... Kd6 {[%clk 0:00:18.9]} 55. a5 {[%clk 0:01:00]} 55...
Kc7 {[%clk 0:00:19]} 56. a6 {[%clk 0:01:01.2]} 56... Kb8 {[%clk 0:00:19]} 57.
Kc6 {[%clk 0:01:02]} 57... Ka7 {[%clk 0:00:19]} 58. Bd3 {[%clk 0:01:02.9]} 58...
Bf2 {[%clk 0:00:19.7]} 59. Kd5 {[%clk 0:01:04]} 59... Bg1 {[%clk 0:00:20.8]} 60.
h4 {[%clk 0:01:05]} 60... gxh4 {[%clk 0:00:20.6]} 61. gxh4 {[%clk 0:01:06]}
61... Be3 {[%clk 0:00:20.9]} 62. h5 {[%clk 0:01:06.6]} 62... Bd2 {[%clk
0:00:20.8]} 63. Ke6 {[%clk 0:01:06.8]} 63... Kb6 {[%clk 0:00:21.8]} 64. Kf7
{[%clk 0:01:08.2]} 64... Ka7 {[%clk 0:00:21.4]} 65. Kg6 {[%clk 0:01:09.7]} 65...
Kb6 {[%clk 0:00:21.1]} 66. h6 {[%clk 0:01:11]} 66... Bc3 {[%clk 0:00:22]} 67. h7
{[%clk 0:01:12.1]} 67... Bd4 {[%clk 0:00:22]} 68. Kf7 {[%clk 0:01:14]} 1-0

[Event "*** Titled Tuesday 3|2 Blitz (Early)"]
[Site "Chess.com"]
[Date "2017.01.03"]
[Round "1"]
[White "RamonManon0g"]
[Black "Rsnr"]
[Result "1-0"]
[WhiteElo "2283"]
[BlackElo "2486"]
[TimeControl "180+2"]
[EndTime "11:10:19 PST"]
[Termination "RamonManon0g won by resignation"]

1. d4 {[%clk 0:03:02]} 1... d5 {[%clk 0:02:58]} 2. Bg5 {[%clk 0:03:01.8]} 2...
c6 {[%clk 0:02:59.9]} 3. Nf3 {[%clk 0:03:02.6]} 3... Bf5 {[%clk 0:03:01.2]} 4.
Nbd2 {[%clk 0:03:03.7]} 4... Nd7 {[%clk 0:03:02.5]} 5. e3 {[%clk 0:03:05]} 5...
Ngf6 {[%clk 0:03:03.9]} 6. c4 {[%clk 0:03:05.8]} 6... e6 {[%clk 0:03:05.4]} 7.
Be2 {[%clk 0:03:07.1]} 7... Be7 {[%clk 0:03:06.4]} 8. O-O {[%clk 0:03:08.4]}
8... h6 {[%clk 0:03:07.6]} 9. Bh4 {[%clk 0:03:09.3]} 9... O-O {[%clk 0:03:08.9]}
10. a3 {[%clk 0:03:08.3]} 10... a5 {[%clk 0:03:09.3]} 11. c5 {[%clk 0:03:06.7]}
11... b6 {[%clk 0:03:07.5]} 12. b4 {[%clk 0:03:07.4]} 12... bxc5 {[%clk
0:03:07.9]} 13. bxc5 {[%clk 0:03:07.9]} 13... Ne4 {[%clk 0:03:07]} 14. Bxe7
{[%clk 0:02:56.9]} 14... Qxe7 {[%clk 0:03:08.9]} 15. Nxe4 {[%clk 0:02:58.6]}
15... Bxe4 {[%clk 0:03:09.6]} 16. Nd2 {[%clk 0:02:58.3]} 16... Bg6 {[%clk
0:03:10.9]} 17. f4 {[%clk 0:02:59.2]} 17... f6 {[%clk 0:03:10.3]} 18. Bh5 {[%clk
0:02:59.9]} 18... Bh7 {[%clk 0:03:11.4]} 19. Qa4 {[%clk 0:02:58.6]} 19... Rfc8
{[%clk 0:03:11.8]} 20. Bg4 {[%clk 0:02:57.4]} 20... Bd3 {[%clk 0:03:03.7]} 21.
Rf2 {[%clk 0:02:56.4]} 21... Bb5 {[%clk 0:03:04.9]} 22. Qc2 {[%clk 0:02:56.4]}
22... f5 {[%clk 0:03:06.4]} 23. Bh5 {[%clk 0:02:56.8]} 23... Nf6 {[%clk
0:03:07.6]} 24. Bg6 {[%clk 0:02:54.6]} 24... Ng4 {[%clk 0:03:07]} 25. Rf3 {[%clk
0:02:53.4]} 25... Qh4 {[%clk 0:03:06.9]} 26. h3 {[%clk 0:02:52.2]} 26... Nf6
{[%clk 0:03:08]} 27. Kh2 {[%clk 0:02:40.5]} 27... Be2 {[%clk 0:02:59.3]} 28. Rg3
{[%clk 0:02:27.9]} 28... Ng4+ {[%clk 0:02:59.6]} 29. Rxg4 {[%clk 0:02:27.3]}
29... fxg4 {[%clk 0:02:50.6]} 30. Nf1 {[%clk 0:02:12.7]} 30... Bxf1 {[%clk
0:02:46.7]} 31. Rxf1 {[%clk 0:02:14.6]} 31... g3+ {[%clk 0:02:46.6]} 32. Kg1
{[%clk 0:02:14.5]} 32... Rab8 {[%clk 0:02:47.2]} 33. f5 {[%clk 0:02:13.9]} 33...
Qg5 {[%clk 0:02:43.5]} 34. fxe6 {[%clk 0:01:59.6]} 34... Qxe3+ {[%clk
0:02:42.4]} 35. Kh1 {[%clk 0:02:01.2]} 35... Kh8 {[%clk 0:02:23.2]} 36. Bf7
{[%clk 0:01:51.7]} 36... Rc7 {[%clk 0:02:07]} 37. Qf5 {[%clk 0:01:46.4]} 37...
Rcb7 {[%clk 0:01:58.7]} 38. Bg6 {[%clk 0:01:46.1]} 38... Rg8 {[%clk 0:01:48.3]}
39. Bh7 {[%clk 0:01:37]} 39... Rd8 {[%clk 0:01:23.6]} 40. Bg6 {[%clk 0:01:37.2]}
40... Rg8 {[%clk 0:01:24.9]} 41. Bh7 {[%clk 0:01:36.5]} 41... Rd8 {[%clk
0:01:26.3]} 42. Bg6 {[%clk 0:01:37.5]} 42... Rbb8 {[%clk 0:01:27.9]} 43. Qf7
{[%clk 0:01:32.4]} 43... Qg5 {[%clk 0:01:18.5]} 44. e7 {[%clk 0:01:24.2]} 44...
Rg8 {[%clk 0:01:18]} 45. Qe6 {[%clk 0:01:14.2]} 45... Qd2 {[%clk 0:00:28]} 46.
e8=Q {[%clk 0:00:56]} 46... Rgxe8 {[%clk 0:00:29]} 47. Bxe8 {[%clk 0:00:57.9]}
47... Qf2 {[%clk 0:00:27.3]} 48. Qe1 {[%clk 0:00:48]} 48... Qxd4 {[%clk
0:00:17.6]} 49. Rf8+ {[%clk 0:00:37.9]} 49... Kh7 {[%clk 0:00:18.5]} 50. Bg6+
{[%clk 0:00:28.2]} 50... Kxg6 {[%clk 0:00:20.1]} 51. Rxb8 {[%clk 0:00:28.3]}
51... Qf4 {[%clk 0:00:16.7]} 52. Rc8 {[%clk 0:00:26.2]} 52... d4 {[%clk
0:00:16]} 53. Rxc6+ {[%clk 0:00:26.9]} 53... Kh7 {[%clk 0:00:16.6]} 54. Qb1+
{[%clk 0:00:26.5]} 54... Kg8 {[%clk 0:00:16.9]} 55. Rc8+ {[%clk 0:00:21.8]}
55... Kf7 {[%clk 0:00:18.1]} 56. Qb7+ {[%clk 0:00:20.2]} 56... Kg6 {[%clk
0:00:19.4]} 57. Qb1+ {[%clk 0:00:16.1]} 57... Kf7 {[%clk 0:00:20.1]} 58. c6
{[%clk 0:00:16.4]} 58... d3 {[%clk 0:00:20.8]} 59. Rd8 {[%clk 0:00:15.9]} 59...
d2 {[%clk 0:00:21.2]} 60. c7 {[%clk 0:00:15.8]} 60... Qxc7 {[%clk 0:00:22.3]}
61. Rxd2 {[%clk 0:00:16.5]} 61... Qf4 {[%clk 0:00:23.4]} 62. Qd1 {[%clk
0:00:16.9]} 62... a4 {[%clk 0:00:23.9]} 63. Qf3 {[%clk 0:00:17.3]} 1-0

[Event "*** Titled Tuesday 3|2 Blitz (Early)"]
[Site "Chess.com"]
[Date "2017.01.03"]
[Round "1"]
[White "IMprovidence"]
[Black "FlySooHigh"]
[Result "1/2-1/2"]
[WhiteElo "2218"]
[BlackElo "2468"]
[TimeControl "180+2"]
[EndTime "11:10:38 PST"]
[Termination "Game drawn by repetition"]

1. d4 {[%clk 0:03:02]} 1... Nf6 {[%clk 0:03:00.7]} 2. c4 {[%clk 0:03:02.3]} 2...
c5 {[%clk 0:03:01.5]} 3. d5 {[%clk 0:03:03.2]} 3... b5 {[%clk 0:03:02.3]} 4.
cxb5 {[%clk 0:03:04.2]} 4... a6 {[%clk 0:03:03.4]} 5. b6 {[%clk 0:03:05.6]} 5...
Bb7 {[%clk 0:03:03.8]} 6. Nc3 {[%clk 0:03:07.2]} 6... e6 {[%clk 0:03:05.2]} 7.
Bg5 {[%clk 0:02:59.1]} 7... Qxb6 {[%clk 0:02:37.4]} 8. Bxf6 {[%clk 0:02:56.8]}
8... gxf6 {[%clk 0:02:39.3]} 9. e4 {[%clk 0:02:54.1]} 9... Qxb2 {[%clk
0:02:25.2]} 10. Nge2 {[%clk 0:02:54.4]} 10... Qb6 {[%clk 0:02:14.1]} 11. Rb1
{[%clk 0:02:53.1]} 11... Qc7 {[%clk 0:02:14.8]} 12. g3 {[%clk 0:02:53.7]} 12...
d6 {[%clk 0:01:36]} 13. dxe6 {[%clk 0:02:25.3]} 13... fxe6 {[%clk 0:01:36.4]}
14. Nf4 {[%clk 0:02:26.4]} 14... Bc8 {[%clk 0:01:22.8]} 15. Bc4 {[%clk 0:02:14]}
15... d5 {[%clk 0:00:53.9]} 16. exd5 {[%clk 0:02:10.8]} 16... Qe5+ {[%clk
0:00:46.8]} 17. Nfe2 {[%clk 0:01:40.1]} 17... exd5 {[%clk 0:00:29.2]} 18. Bxd5
{[%clk 0:01:32.4]} 18... Ra7 {[%clk 0:00:29.7]} 19. O-O {[%clk 0:01:24.9]} 19...
Bh6 {[%clk 0:00:26.7]} 20. Re1 {[%clk 0:01:21.1]} 20... Re7 {[%clk 0:00:27.2]}
21. Qa4+ {[%clk 0:01:06.4]} 21... Nd7 {[%clk 0:00:20.9]} 22. Qc6 {[%clk
0:00:58.4]} 22... Kd8 {[%clk 0:00:19.5]} 23. Bg2 {[%clk 0:00:47.2]} 23... Bd2
{[%clk 0:00:19.3]} 24. Nd5 {[%clk 0:00:30]} 24... Bxe1 {[%clk 0:00:18.8]} 25.
Rxe1 {[%clk 0:00:27.9]} 25... Re6 {[%clk 0:00:16.6]} 26. Qa4 {[%clk 0:00:25.8]}
26... Qd6 {[%clk 0:00:04.5]} 27. Ndf4 {[%clk 0:00:23.9]} 27... Re5 {[%clk
0:00:05]} 28. Rd1 {[%clk 0:00:24.2]} 28... Qc7 {[%clk 0:00:04.3]} 29. Nc3 {[%clk
0:00:21.6]} 29... Ke8 {[%clk 0:00:05]} 30. Ncd5 {[%clk 0:00:20.4]} 30... Qd6
{[%clk 0:00:06.1]} 31. Bf3 {[%clk 0:00:20.8]} 31... Kf8 {[%clk 0:00:05.6]} 32.
Kg2 {[%clk 0:00:20.9]} 32... Kg7 {[%clk 0:00:06.4]} 33. Ne3 {[%clk 0:00:21]}
33... Qc7 {[%clk 0:00:05.3]} 34. Nfd5 {[%clk 0:00:20.3]} 34... Qd8 {[%clk
0:00:05.8]} 35. Ng4 {[%clk 0:00:21.1]} 35... Re6 {[%clk 0:00:04.7]} 36. Nf4
{[%clk 0:00:22]} 36... Re7 {[%clk 0:00:04.9]} 37. Nh5+ {[%clk 0:00:22.9]} 37...
Kf8 {[%clk 0:00:04.9]} 38. Nhxf6 {[%clk 0:00:24]} 38... Qc7 {[%clk 0:00:06.3]}
39. Nd5 {[%clk 0:00:24.3]} 39... Qd6 {[%clk 0:00:07]} 40. Nxe7 {[%clk
0:00:25.2]} 40... Qxe7 {[%clk 0:00:08.9]} 41. Qc4 {[%clk 0:00:25.4]} 41... Qf7
{[%clk 0:00:09.4]} 42. Qc3 {[%clk 0:00:25.9]} 42... Rg8 {[%clk 0:00:10]} 43. Bd5
{[%clk 0:00:25.8]} 43... Qg7 {[%clk 0:00:09.9]} 44. Qf3+ {[%clk 0:00:26.3]}
44... Ke7 {[%clk 0:00:09.8]} 45. Bxg8 {[%clk 0:00:27.1]} 45... Qxg8 {[%clk
0:00:11.7]} 46. Re1+ {[%clk 0:00:27.3]} 46... Kd8 {[%clk 0:00:12.9]} 47. Nf6
{[%clk 0:00:27.8]} 47... Qxa2 {[%clk 0:00:13]} 48. Nxd7 {[%clk 0:00:27.3]} 48...
Bxd7 {[%clk 0:00:14.9]} 49. Qa8+ {[%clk 0:00:28.2]} 49... Kc7 {[%clk 0:00:15.5]}
50. Qa7+ {[%clk 0:00:29.3]} 50... Kc8 {[%clk 0:00:16.7]} 51. Qa8+ {[%clk
0:00:29.6]} 51... Kc7 {[%clk 0:00:17.7]} 52. Qa7+ {[%clk 0:00:30.1]} 52... Kc6
{[%clk 0:00:19.1]} 53. Qa8+ {[%clk 0:00:30.5]} 53... Kc7 {[%clk 0:00:19.9]} 54.
Qa7+ {[%clk 0:00:31.4]} 54... Kc6 {[%clk 0:00:21.2]} 55. Qa8+ {[%clk 0:00:32.3]}
55... Kc7 {[%clk 0:00:22.5]} 56. Qa7+ {[%clk 0:00:33.2]} 56... Kc6 {[%clk
0:00:23.9]} 57. Qa8+ {[%clk 0:00:21.8]} 57... Kc7 {[%clk 0:00:24.9]} 1/2-1/2